[Event "Late-Titled-Tuesday-Blitz-April-02-2024"]
[Site "Chess.com"]
[Date "2024.04.02"]
[Round "4"]
[White "N_I_Chess"]
[Black "rcmz"]
[Result "1-0"]
[WhiteElo "2379"]
[BlackElo "2200"]
[TimeControl "180+1"]
[EndTime "14:37:19 PDT"]
[Termination "N_I_Chess won on time"]

1. d4 {[%clk 0:02:53.7]} 1... d6 {[%clk 0:02:59.2]} 2. c4 {[%clk 0:02:53.8]}
2... Nd7 {[%clk 0:02:59.2]} 3. Nc3 {[%clk 0:02:42.6]} 3... h6 {[%clk 0:02:58.2]}
4. e4 {[%clk 0:02:42.5]} 4... c6 {[%clk 0:02:58.1]} 5. f4 {[%clk 0:02:40.8]}
5... g5 {[%clk 0:02:58.1]} 6. fxg5 {[%clk 0:02:39.2]} 6... Bg7 {[%clk 0:02:58]}
7. Nf3 {[%clk 0:02:37.8]} 7... Nf8 {[%clk 0:02:56.1]} 8. Bd3 {[%clk 0:02:30.7]}
8... Ne6 {[%clk 0:02:50.2]} 9. gxh6 {[%clk 0:02:21.1]} 9... Nxh6 {[%clk
0:02:48.9]} 10. Bc2 {[%clk 0:02:04]} 10... Qb6 {[%clk 0:02:43]} 11. Na4 {[%clk
0:01:56.4]} 11... Qb4+ {[%clk 0:02:36.7]} 12. Nc3 {[%clk 0:01:54.2]} 12... Qxc4
{[%clk 0:02:29.3]} 13. Bb3 {[%clk 0:01:43.2]} 13... Qa6 {[%clk 0:02:14.3]} 14.
h3 {[%clk 0:01:28.9]} 14... Ng4 {[%clk 0:02:04.9]} 15. Rf1 {[%clk 0:01:27]}
15... Nf6 {[%clk 0:01:58.7]} 16. Be3 {[%clk 0:01:23.3]} 16... Qa5 {[%clk
0:01:48]} 17. Qd2 {[%clk 0:01:20]} 17... b5 {[%clk 0:01:37.3]} 18. e5 {[%clk
0:01:06]} 18... dxe5 {[%clk 0:01:30.6]} 19. Nxe5 {[%clk 0:00:55.3]} 19... Qc7
{[%clk 0:01:08.4]} 20. Rc1 {[%clk 0:00:48.8]} 20... Qd6 {[%clk 0:01:05.5]} 21.
Qf2 {[%clk 0:00:35.7]} 21... Rf8 {[%clk 0:00:26.8]} 22. Rd1 {[%clk 0:00:35]}
22... b4 {[%clk 0:00:23.9]} 23. Na4 {[%clk 0:00:33.5]} 23... Ba6 {[%clk
0:00:20.5]} 24. Rg1 {[%clk 0:00:33.5]} 24... Nd5 {[%clk 0:00:14.1]} 25. Bd2
{[%clk 0:00:24.2]} 25... Bxe5 {[%clk 0:00:12.4]} 26. Bxd5 {[%clk 0:00:11.1]}
26... Qxd5 {[%clk 0:00:07.7]} 27. dxe5 {[%clk 0:00:10.9]} 27... Qxe5+ {[%clk
0:00:06.9]} 28. Qe3 {[%clk 0:00:09.2]} 28... Qxe3+ {[%clk 0:00:01.5]} 29. Bxe3
{[%clk 0:00:10.1]} 1-0

[Event "Late-Titled-Tuesday-Blitz-April-02-2024"]
[Site "Chess.com"]
[Date "2024.04.02"]
[Round "4"]
[White "Sanan_Sjugirov"]
[Black "Oleg_Papayan"]
[Result "0-1"]
[WhiteElo "2966"]
[BlackElo "2707"]
[TimeControl "180+1"]
[EndTime "14:37:22 PDT"]
[Termination "Oleg_Papayan won on time"]

1. d4 {[%clk 0:03:00.9]} 1... d5 {[%clk 0:02:57.3]} 2. c4 {[%clk 0:03:01.2]}
2... dxc4 {[%clk 0:02:57.4]} 3. Nf3 {[%clk 0:02:57.7]} 3... Nf6 {[%clk
0:02:57.5]} 4. e3 {[%clk 0:02:58.4]} 4... a6 {[%clk 0:02:57.6]} 5. Bxc4 {[%clk
0:02:58.3]} 5... e6 {[%clk 0:02:58.1]} 6. O-O {[%clk 0:02:58]} 6... b5 {[%clk
0:02:58.4]} 7. Bd3 {[%clk 0:02:48.4]} 7... Bb7 {[%clk 0:02:58.7]} 8. a4 {[%clk
0:02:48.3]} 8... b4 {[%clk 0:02:58.6]} 9. b3 {[%clk 0:02:45.2]} 9... Nbd7 {[%clk
0:02:58.2]} 10. Bb2 {[%clk 0:02:45]} 10... c5 {[%clk 0:02:47.4]} 11. Nbd2 {[%clk
0:02:45.1]} 11... Be7 {[%clk 0:02:47.2]} 12. Rc1 {[%clk 0:02:30.3]} 12... O-O
{[%clk 0:02:46.6]} 13. Qe2 {[%clk 0:02:29.7]} 13... cxd4 {[%clk 0:02:39.4]} 14.
Bxd4 {[%clk 0:02:29.4]} 14... Nd5 {[%clk 0:02:34]} 15. Nc4 {[%clk 0:02:09.3]}
15... Qb8 {[%clk 0:01:50.3]} 16. Nfe5 {[%clk 0:01:54.3]} 16... Nxe5 {[%clk
0:01:48.6]} 17. Bxe5 {[%clk 0:01:54.5]} 17... Qd8 {[%clk 0:01:47.9]} 18. Rfd1
{[%clk 0:01:50.2]} 18... Bf6 {[%clk 0:01:45.2]} 19. Qh5 {[%clk 0:00:59.8]} 19...
g6 {[%clk 0:01:41.7]} 20. Qh6 {[%clk 0:01:00.3]} 20... Rc8 {[%clk 0:01:22.9]}
21. Be4 {[%clk 0:00:39.2]} 21... Bxe5 {[%clk 0:01:19.9]} 22. Nxe5 {[%clk
0:00:40.1]} 22... Rxc1 {[%clk 0:01:19.9]} 23. Rxc1 {[%clk 0:00:40.9]} 23... Nc3
{[%clk 0:01:13.7]} 24. Bxb7 {[%clk 0:00:33.9]} 24... Ne2+ {[%clk 0:01:13.8]} 25.
Kh1 {[%clk 0:00:22.3]} 25... Nxc1 {[%clk 0:01:14.7]} 26. h4 {[%clk 0:00:22.9]}
26... Qc7 {[%clk 0:00:26.7]} 27. Nf3 {[%clk 0:00:10]} 27... Qxb7 {[%clk
0:00:21.1]} 28. Ng5 {[%clk 0:00:10.6]} 28... f6 {[%clk 0:00:21.7]} 29. Nxe6
{[%clk 0:00:11.3]} 29... Re8 {[%clk 0:00:19.9]} 30. Nd4 {[%clk 0:00:10.9]} 30...
Qe4 {[%clk 0:00:17.6]} 31. Kg1 {[%clk 0:00:04.5]} 31... Nd3 {[%clk 0:00:16.9]}
32. h5 {[%clk 0:00:03.4]} 32... Ne1 {[%clk 0:00:14.4]} 0-1

[Event "Late-Titled-Tuesday-Blitz-April-02-2024"]
[Site "Chess.com"]
[Date "2024.04.02"]
[Round "4"]
[White "TheoSlade"]
[Black "Resignify"]
[Result "1-0"]
[WhiteElo "2392"]
[BlackElo "2242"]
[TimeControl "180+1"]
[EndTime "14:37:22 PDT"]
[Termination "TheoSlade won by resignation"]

1. d4 {[%clk 0:03:00.9]} 1... Nf6 {[%clk 0:02:59.5]} 2. c4 {[%clk 0:03:01.2]}
2... g6 {[%clk 0:02:59.7]} 3. Nc3 {[%clk 0:03:01.2]} 3... Bg7 {[%clk 0:03:00.1]}
4. e4 {[%clk 0:03:01.8]} 4... d6 {[%clk 0:02:59.5]} 5. Nf3 {[%clk 0:03:02.4]}
5... O-O {[%clk 0:03:00]} 6. Be2 {[%clk 0:03:03.1]} 6... e5 {[%clk 0:02:59.5]}
7. Be3 {[%clk 0:03:03.8]} 7... d5 {[%clk 0:03:00.4]} 8. cxd5 {[%clk 0:03:00]}
8... exd4 {[%clk 0:02:55.2]} 9. Nxd4 {[%clk 0:03:00.5]} 9... Re8 {[%clk
0:02:53.5]} 10. f3 {[%clk 0:02:59.4]} 10... Nbd7 {[%clk 0:02:47.8]} 11. O-O
{[%clk 0:02:59.6]} 11... Ne5 {[%clk 0:02:43.3]} 12. Rc1 {[%clk 0:02:58.7]} 12...
a6 {[%clk 0:02:42.8]} 13. Qd2 {[%clk 0:02:56.7]} 13... Bd7 {[%clk 0:02:38.8]}
14. Rfd1 {[%clk 0:02:56.6]} 14... Qe7 {[%clk 0:02:36.1]} 15. Bg5 {[%clk
0:02:54.3]} 15... Qc5 {[%clk 0:02:30.8]} 16. Na4 {[%clk 0:02:45]} 16... Qa7
{[%clk 0:02:22]} 17. Nc5 {[%clk 0:02:43.8]} 17... Bc8 {[%clk 0:02:15.7]} 18. f4
{[%clk 0:02:21.7]} 18... Ned7 {[%clk 0:02:06.5]} 19. Nxd7 {[%clk 0:01:56.4]}
19... Nxe4 {[%clk 0:01:51.7]} 20. Qd3 {[%clk 0:01:51.2]} 20... Bxd7 {[%clk
0:01:16.2]} 21. Kf1 {[%clk 0:01:30]} 21... Nxg5 {[%clk 0:00:36.9]} 22. fxg5
{[%clk 0:01:29]} 22... Bxd4 {[%clk 0:00:32.3]} 23. Qxd4 {[%clk 0:01:28.9]} 23...
Qxd4 {[%clk 0:00:28.5]} 24. Rxd4 {[%clk 0:01:29.8]} 24... Rac8 {[%clk
0:00:26.8]} 25. Rb4 {[%clk 0:01:23.5]} 25... b5 {[%clk 0:00:22.1]} 26. Rb3
{[%clk 0:01:17.3]} 26... Re5 {[%clk 0:00:22.2]} 27. Bf3 {[%clk 0:01:12.6]} 27...
Rxg5 {[%clk 0:00:22]} 28. Rbc3 {[%clk 0:01:11.5]} 28... Re5 {[%clk 0:00:19.5]}
29. Rxc7 {[%clk 0:01:10.7]} 29... Rxc7 {[%clk 0:00:20.4]} 30. Rxc7 {[%clk
0:01:11.3]} 30... Bf5 {[%clk 0:00:20.8]} 31. d6 {[%clk 0:01:08.2]} 31... Re8
{[%clk 0:00:20.6]} 32. Ra7 {[%clk 0:00:59.9]} 32... Rd8 {[%clk 0:00:18.2]} 33.
Rxa6 {[%clk 0:00:58.8]} 33... Be6 {[%clk 0:00:18.8]} 34. b3 {[%clk 0:00:51.6]}
34... Kf8 {[%clk 0:00:18.2]} 35. Kf2 {[%clk 0:00:45.5]} 35... Ke8 {[%clk
0:00:17.8]} 36. Bc6+ {[%clk 0:00:44.1]} 36... Kf8 {[%clk 0:00:17.7]} 37. Bxb5
{[%clk 0:00:43.9]} 37... Rb8 {[%clk 0:00:17.2]} 38. Bc6 {[%clk 0:00:41.7]} 38...
Rd8 {[%clk 0:00:17.3]} 39. Ra8 {[%clk 0:00:41]} 39... Rxa8 {[%clk 0:00:15.8]}
40. Bxa8 {[%clk 0:00:41.9]} 40... Ke8 {[%clk 0:00:16.7]} 41. Bc6+ {[%clk
0:00:42.4]} 41... Kd8 {[%clk 0:00:17.6]} 42. Ke3 {[%clk 0:00:41.3]} 42... Bf5
{[%clk 0:00:17]} 43. Kd4 {[%clk 0:00:40.9]} 43... Bb1 {[%clk 0:00:17]} 44. a4
{[%clk 0:00:40.3]} 44... Ba2 {[%clk 0:00:17.9]} 45. b4 {[%clk 0:00:40.3]} 45...
Be6 {[%clk 0:00:15.7]} 46. a5 {[%clk 0:00:40.1]} 1-0

[Event "Late-Titled-Tuesday-Blitz-April-02-2024"]
[Site "Chess.com"]
[Date "2024.04.02"]
[Round "4"]
[White "Bala-Afiada"]
[Black "Yushko_Olga"]
[Result "1-0"]
[WhiteElo "1968"]
[BlackElo "2233"]
[TimeControl "180+1"]
[EndTime "14:37:25 PDT"]
[Termination "Bala-Afiada won by resignation"]

1. d4 {[%clk 0:03:00.9]} 1... e6 {[%clk 0:02:55]} 2. c4 {[%clk 0:03:00.8]} 2...
Nf6 {[%clk 0:02:54.8]} 3. Nf3 {[%clk 0:03:01]} 3... d5 {[%clk 0:02:55.2]} 4. Qc2
{[%clk 0:03:01.4]} 4... Be7 {[%clk 0:02:52.3]} 5. g3 {[%clk 0:03:01.9]} 5... O-O
{[%clk 0:02:52.3]} 6. Bg2 {[%clk 0:03:02.6]} 6... dxc4 {[%clk 0:02:50]} 7. Qxc4
{[%clk 0:03:01.9]} 7... c6 {[%clk 0:02:47.7]} 8. O-O {[%clk 0:03:02]} 8... b5
{[%clk 0:02:46.7]} 9. Qc2 {[%clk 0:03:01.9]} 9... Bb7 {[%clk 0:02:46.3]} 10. Rd1
{[%clk 0:03:01.8]} 10... Qb6 {[%clk 0:02:45.4]} 11. Nc3 {[%clk 0:02:53.1]} 11...
a5 {[%clk 0:02:44.4]} 12. e4 {[%clk 0:02:51.5]} 12... Na6 {[%clk 0:02:44]} 13.
e5 {[%clk 0:02:51]} 13... Nd5 {[%clk 0:02:39.5]} 14. Ne4 {[%clk 0:02:37.1]}
14... c5 {[%clk 0:02:25.6]} 15. Bg5 {[%clk 0:02:24.9]} 15... Nab4 {[%clk
0:02:10.8]} 16. Qb1 {[%clk 0:02:21]} 16... c4 {[%clk 0:02:03.6]} 17. Bxe7 {[%clk
0:02:20.5]} 17... Nxe7 {[%clk 0:02:04.5]} 18. a3 {[%clk 0:02:08.7]} 18... Nd3
{[%clk 0:01:58.6]} 19. Nd6 {[%clk 0:02:02.2]} 19... Bxf3 {[%clk 0:01:51.7]} 20.
Bxf3 {[%clk 0:01:56.4]} 20... Qxd4 {[%clk 0:01:51.8]} 21. Rxd3 {[%clk
0:01:37.3]} 21... cxd3 {[%clk 0:01:47.8]} 22. Bxa8 {[%clk 0:01:29.8]} 22... Rxa8
{[%clk 0:01:47.7]} 23. Nxb5 {[%clk 0:01:18.1]} 23... Qc4 {[%clk 0:01:19.2]} 24.
Nd6 {[%clk 0:01:00.3]} 24... Qd4 {[%clk 0:01:17.7]} 25. Qe1 {[%clk 0:00:57.9]}
25... Nc6 {[%clk 0:01:11.3]} 26. Qe4 {[%clk 0:00:43.4]} 26... Qxe4 {[%clk
0:01:09.7]} 27. Nxe4 {[%clk 0:00:43.2]} 27... Nxe5 {[%clk 0:01:10.1]} 28. Rd1
{[%clk 0:00:43.2]} 28... Rd8 {[%clk 0:01:03.8]} 29. f4 {[%clk 0:00:40.8]} 29...
Nc4 {[%clk 0:01:03.7]} 30. b4 {[%clk 0:00:33.8]} 30... Nxa3 {[%clk 0:00:50.9]}
31. bxa5 {[%clk 0:00:33.6]} 31... Nb5 {[%clk 0:00:44.4]} 32. Nc5 {[%clk
0:00:31.2]} 32... d2 {[%clk 0:00:41.9]} 33. Nb3 {[%clk 0:00:22.7]} 33... Nd4
{[%clk 0:00:41.6]} 34. Nxd4 {[%clk 0:00:20.5]} 34... Rxd4 {[%clk 0:00:42.5]} 35.
a6 {[%clk 0:00:20.8]} 35... Kf8 {[%clk 0:00:41.2]} 36. a7 {[%clk 0:00:20.7]}
36... Rd8 {[%clk 0:00:32.7]} 37. Rxd2 {[%clk 0:00:18.3]} 37... Ra8 {[%clk
0:00:29.9]} 38. Rd7 {[%clk 0:00:18.3]} 38... Ke8 {[%clk 0:00:29.6]} 39. Rb7
{[%clk 0:00:18.9]} 1-0

[Event "Late-Titled-Tuesday-Blitz-April-02-2024"]
[Site "Chess.com"]
[Date "2024.04.02"]
[Round "4"]
[White "picturesquecheck"]
[Black "Navyblue1"]
[Result "0-1"]
[WhiteElo "2389"]
[BlackElo "2274"]
[TimeControl "180+1"]
[EndTime "14:37:26 PDT"]
[Termination "Navyblue1 won by resignation"]

1. e4 {[%clk 0:03:00.9]} 1... c5 {[%clk 0:02:45.8]} 2. Nf3 {[%clk 0:02:59.9]}
2... d6 {[%clk 0:02:25.2]} 3. Bb5+ {[%clk 0:02:58.3]} 3... Nd7 {[%clk
0:02:15.8]} 4. a4 {[%clk 0:02:59.2]} 4... a6 {[%clk 0:02:13.2]} 5. Be2 {[%clk
0:02:57.1]} 5... Ngf6 {[%clk 0:02:10.2]} 6. Nc3 {[%clk 0:02:53.2]} 6... g6
{[%clk 0:02:08.1]} 7. O-O {[%clk 0:02:53.4]} 7... Bg7 {[%clk 0:02:08.1]} 8. d3
{[%clk 0:02:54.1]} 8... O-O {[%clk 0:02:07.9]} 9. a5 {[%clk 0:02:54.7]} 9... Rb8
{[%clk 0:02:06.6]} 10. h3 {[%clk 0:02:53.5]} 10... b5 {[%clk 0:01:57.4]} 11.
axb6 {[%clk 0:02:50]} 11... Rxb6 {[%clk 0:01:51.5]} 12. Na4 {[%clk 0:02:47]}
12... Rb8 {[%clk 0:01:50.3]} 13. Bd2 {[%clk 0:02:47.5]} 13... Bb7 {[%clk
0:01:47.5]} 14. Bc3 {[%clk 0:02:46.1]} 14... e5 {[%clk 0:01:37]} 15. b3 {[%clk
0:02:42.5]} 15... d5 {[%clk 0:01:37.4]} 16. exd5 {[%clk 0:02:35.4]} 16... Nxd5
{[%clk 0:01:38.3]} 17. Bb2 {[%clk 0:02:33.3]} 17... Re8 {[%clk 0:01:37.9]} 18.
Re1 {[%clk 0:02:32.9]} 18... Qc7 {[%clk 0:01:30.8]} 19. Bf1 {[%clk 0:02:29.2]}
19... Rbc8 {[%clk 0:01:28.2]} 20. g3 {[%clk 0:02:20]} 20... Rcd8 {[%clk
0:01:01.5]} 21. Qe2 {[%clk 0:02:04.8]} 21... N5b6 {[%clk 0:00:48.8]} 22. Bg2
{[%clk 0:01:57.8]} 22... Nxa4 {[%clk 0:00:45.6]} 23. Rxa4 {[%clk 0:01:58.7]}
23... e4 {[%clk 0:00:37.9]} 24. Bxg7 {[%clk 0:01:39.7]} 24... exf3 {[%clk
0:00:37.6]} 25. Qxe8+ {[%clk 0:01:40.2]} 25... Rxe8 {[%clk 0:00:35.7]} 26. Rxe8+
{[%clk 0:01:41.1]} 26... Kxg7 {[%clk 0:00:35.8]} 27. Bf1 {[%clk 0:01:41.6]}
27... Nf6 {[%clk 0:00:34.1]} 28. Re3 {[%clk 0:01:40.8]} 28... Qd6 {[%clk
0:00:22.4]} 29. Re1 {[%clk 0:01:27.1]} 29... Nh5 {[%clk 0:00:19]} 30. Kh2 {[%clk
0:01:20.2]} 30... f5 {[%clk 0:00:16.3]} 31. c3 {[%clk 0:01:00.5]} 31... Nxg3
{[%clk 0:00:15.4]} 32. fxg3 {[%clk 0:00:59.3]} 32... f2 {[%clk 0:00:16]} 33. Re3
{[%clk 0:00:46.5]} 33... Qc6 {[%clk 0:00:16.1]} 34. Re7+ {[%clk 0:00:39.9]}
34... Kh6 {[%clk 0:00:15.2]} 35. Rh4+ {[%clk 0:00:29.2]} 35... Kg5 {[%clk
0:00:14.4]} 36. Rxb7 {[%clk 0:00:15]} 36... Qxb7 {[%clk 0:00:15.3]} 37. Rf4
{[%clk 0:00:13.2]} 37... Qxb3 {[%clk 0:00:14.7]} 38. h4+ {[%clk 0:00:13.7]}
38... Kf6 {[%clk 0:00:13.9]} 39. Re4 {[%clk 0:00:13.9]} 39... fxe4 {[%clk
0:00:13]} 0-1

[Event "Late-Titled-Tuesday-Blitz-April-02-2024"]
[Site "Chess.com"]
[Date "2024.04.02"]
[Round "4"]
[White "Josetricks"]
[Black "Mikhal867"]
[Result "1-0"]
[WhiteElo "2662"]
[BlackElo "2519"]
[TimeControl "180+1"]
[EndTime "14:37:27 PDT"]
[Termination "Josetricks won by resignation"]

1. c4 {[%clk 0:03:00.9]} 1... c5 {[%clk 0:02:57.3]} 2. Nf3 {[%clk 0:02:58.8]}
2... Nf6 {[%clk 0:02:56.5]} 3. Nc3 {[%clk 0:02:58.6]} 3... d5 {[%clk 0:02:54.9]}
4. cxd5 {[%clk 0:02:57.2]} 4... Nxd5 {[%clk 0:02:55.2]} 5. e3 {[%clk 0:02:56.3]}
5... Nc6 {[%clk 0:02:52.2]} 6. Bc4 {[%clk 0:02:49.1]} 6... Nb6 {[%clk
0:02:36.8]} 7. Be2 {[%clk 0:02:39.9]} 7... g6 {[%clk 0:02:35.5]} 8. d4 {[%clk
0:02:38]} 8... cxd4 {[%clk 0:02:27.2]} 9. exd4 {[%clk 0:02:38.9]} 9... Bg7
{[%clk 0:02:26]} 10. Be3 {[%clk 0:02:36.7]} 10... O-O {[%clk 0:02:24.8]} 11. O-O
{[%clk 0:02:35.5]} 11... Bg4 {[%clk 0:02:21.3]} 12. d5 {[%clk 0:02:34]} 12...
Nb4 {[%clk 0:02:20.9]} 13. h3 {[%clk 0:02:25.9]} 13... Bxf3 {[%clk 0:02:10.4]}
14. Bxf3 {[%clk 0:02:26.8]} 14... Bxc3 {[%clk 0:01:58.6]} 15. Bxb6 {[%clk
0:02:26.3]} 15... Qxb6 {[%clk 0:01:49.4]} 16. bxc3 {[%clk 0:02:26.5]} 16... Na6
{[%clk 0:01:48.9]} 17. Rb1 {[%clk 0:02:20.2]} 17... Qa5 {[%clk 0:01:27.5]} 18.
Rxb7 {[%clk 0:02:15]} 18... Qxc3 {[%clk 0:01:08.9]} 19. Rxe7 {[%clk 0:02:14.3]}
19... Qa3 {[%clk 0:00:58]} 20. Qe2 {[%clk 0:02:08.7]} 20... Nc5 {[%clk
0:00:55.6]} 21. Rd1 {[%clk 0:02:04.8]} 21... Rad8 {[%clk 0:00:54.9]} 22. d6
{[%clk 0:02:01.4]} 22... Na4 {[%clk 0:00:54.8]} 23. Rd3 {[%clk 0:01:33.5]} 23...
Qc1+ {[%clk 0:00:48.8]} 24. Qd1 {[%clk 0:01:22.8]} 24... Qxd1+ {[%clk
0:00:43.5]} 25. Rxd1 {[%clk 0:01:23.7]} 25... Nc3 {[%clk 0:00:39.2]} 26. Rd2
{[%clk 0:01:21.8]} 26... Nb5 {[%clk 0:00:38.4]} 27. d7 {[%clk 0:01:19.4]} 27...
Kg7 {[%clk 0:00:36.4]} 28. a4 {[%clk 0:01:11]} 28... Nc7 {[%clk 0:00:35.5]} 29.
Rd6 {[%clk 0:01:05.4]} 29... Rb8 {[%clk 0:00:23.9]} 30. Kh2 {[%clk 0:00:58.6]}
30... Rfd8 {[%clk 0:00:22.9]} 31. Bd5 {[%clk 0:00:51.6]} 31... Nxd5 {[%clk
0:00:21.2]} 32. Rxd5 {[%clk 0:00:52.5]} 32... Kf6 {[%clk 0:00:20.8]} 33. Re3
{[%clk 0:00:51.1]} 33... Rb7 {[%clk 0:00:20.6]} 34. Rd6+ {[%clk 0:00:41.4]}
34... Kg7 {[%clk 0:00:18.1]} 35. Red3 {[%clk 0:00:33.9]} 35... Kf8 {[%clk
0:00:18]} 36. R6d4 {[%clk 0:00:20.1]} 36... Ke7 {[%clk 0:00:18.1]} 37. Re3+
{[%clk 0:00:20.5]} 37... Kf6 {[%clk 0:00:17]} 38. Rf4+ {[%clk 0:00:19.6]} 38...
Kg7 {[%clk 0:00:14]} 39. Re7 {[%clk 0:00:20.2]} 39... Rf8 {[%clk 0:00:07.6]} 40.
d8=Q {[%clk 0:00:20.5]} 40... Rxd8 {[%clk 0:00:07.2]} 41. Rxb7 {[%clk
0:00:21.1]} 1-0

[Event "Late-Titled-Tuesday-Blitz-April-02-2024"]
[Site "Chess.com"]
[Date "2024.04.02"]
[Round "4"]
[White "wild3000"]
[Black "Sinquefield"]
[Result "1-0"]
[WhiteElo "2392"]
[BlackElo "2536"]
[TimeControl "180+1"]
[EndTime "14:37:28 PDT"]
[Termination "wild3000 won by resignation"]

1. e4 {[%clk 0:03:00.8]} 1... d5 {[%clk 0:02:58.2]} 2. exd5 {[%clk 0:02:59.8]}
2... Nf6 {[%clk 0:02:57.1]} 3. d4 {[%clk 0:02:58.9]} 3... Nxd5 {[%clk
0:02:56.5]} 4. c4 {[%clk 0:02:59.3]} 4... Nb6 {[%clk 0:02:56.3]} 5. c5 {[%clk
0:02:58.6]} 5... Nd5 {[%clk 0:02:56.1]} 6. Nc3 {[%clk 0:02:59.2]} 6... e6 {[%clk
0:02:47.7]} 7. Nf3 {[%clk 0:02:56.5]} 7... Be7 {[%clk 0:02:46.7]} 8. Bc4 {[%clk
0:02:50.2]} 8... O-O {[%clk 0:02:39.4]} 9. O-O {[%clk 0:02:50]} 9... Bf6 {[%clk
0:02:37.6]} 10. Ne4 {[%clk 0:02:48.2]} 10... Be7 {[%clk 0:02:36.9]} 11. a3
{[%clk 0:02:45.1]} 11... Nc6 {[%clk 0:02:35.6]} 12. b4 {[%clk 0:02:40.6]} 12...
a6 {[%clk 0:02:35.1]} 13. Bb2 {[%clk 0:02:33.8]} 13... b5 {[%clk 0:02:16.5]} 14.
Bd3 {[%clk 0:02:25.6]} 14... g6 {[%clk 0:02:15.4]} 15. Ne5 {[%clk 0:02:20.5]}
15... Bb7 {[%clk 0:01:53.9]} 16. Re1 {[%clk 0:02:01.3]} 16... Nf4 {[%clk
0:01:43.8]} 17. Bc2 {[%clk 0:01:56.1]} 17... f5 {[%clk 0:01:19.9]} 18. d5 {[%clk
0:01:14.1]} 18... Qxd5 {[%clk 0:01:14.5]} 19. Qxd5 {[%clk 0:01:09.9]} 19... Nxd5
{[%clk 0:01:13.8]} 20. Nd2 {[%clk 0:01:03.5]} 20... Bf6 {[%clk 0:01:07.4]} 21.
Ndf3 {[%clk 0:01:03.3]} 21... Nxe5 {[%clk 0:01:00.2]} 22. Bxe5 {[%clk
0:01:00.9]} 22... Bxe5 {[%clk 0:00:56.9]} 23. Nxe5 {[%clk 0:01:01.8]} 23... Rad8
{[%clk 0:00:50.4]} 24. Bb3 {[%clk 0:00:55.3]} 24... Nf4 {[%clk 0:00:48.6]} 25.
c6 {[%clk 0:00:53]} 25... Bc8 {[%clk 0:00:44.1]} 26. g3 {[%clk 0:00:51]} 26...
Nd5 {[%clk 0:00:37.3]} 27. f4 {[%clk 0:00:47.2]} 27... Nf6 {[%clk 0:00:33.5]}
28. a4 {[%clk 0:00:38]} 28... Ne4 {[%clk 0:00:27.8]} 29. axb5 {[%clk 0:00:36.3]}
29... axb5 {[%clk 0:00:27.3]} 30. Ra7 {[%clk 0:00:34.9]} 30... Rd4 {[%clk
0:00:24]} 31. Rxc7 {[%clk 0:00:29.6]} 31... Rxb4 {[%clk 0:00:22]} 32. Ba2 {[%clk
0:00:27]} 32... Nd6 {[%clk 0:00:20.2]} 33. Rd1 {[%clk 0:00:22]} 33... Nc4 {[%clk
0:00:20.6]} 34. Nd7 {[%clk 0:00:18.5]} 34... Bxd7 {[%clk 0:00:15.5]} 35. cxd7
{[%clk 0:00:19.4]} 35... Rb2 {[%clk 0:00:10]} 36. d8=Q {[%clk 0:00:18.8]} 36...
Rxa2 {[%clk 0:00:09.8]} 37. Qe7 {[%clk 0:00:17.3]} 1-0

[Event "Late-Titled-Tuesday-Blitz-April-02-2024"]
[Site "Chess.com"]
[Date "2024.04.02"]
[Round "4"]
[White "Rodalquilar"]
[Black "Slovak_fighter2000"]
[Result "1-0"]
[WhiteElo "2735"]
[BlackElo "2564"]
[TimeControl "180+1"]
[EndTime "14:37:29 PDT"]
[Termination "Rodalquilar won by checkmate"]

1. d4 {[%clk 0:03:00.9]} 1... Nf6 {[%clk 0:02:59.8]} 2. Nf3 {[%clk 0:03:01.3]}
2... d5 {[%clk 0:02:59.8]} 3. Bf4 {[%clk 0:03:01.6]} 3... c5 {[%clk 0:02:55.7]}
4. e3 {[%clk 0:03:02]} 4... Nc6 {[%clk 0:02:55.8]} 5. c3 {[%clk 0:03:02.5]} 5...
Qb6 {[%clk 0:02:53.4]} 6. Qc2 {[%clk 0:03:02.9]} 6... g6 {[%clk 0:02:37.6]} 7.
h3 {[%clk 0:03:02.5]} 7... Bg7 {[%clk 0:02:37]} 8. Nbd2 {[%clk 0:03:00.9]} 8...
Bf5 {[%clk 0:02:34.3]} 9. dxc5 {[%clk 0:03:00.9]} 9... Bxc2 {[%clk 0:02:23.7]}
10. cxb6 {[%clk 0:03:00.5]} 10... axb6 {[%clk 0:02:24.6]} 11. Bb5 {[%clk
0:03:00.3]} 11... Bf5 {[%clk 0:02:20.5]} 12. O-O {[%clk 0:02:48.2]} 12... O-O
{[%clk 0:02:17.8]} 13. a3 {[%clk 0:02:47.4]} 13... Ne4 {[%clk 0:02:07.7]} 14.
Bc7 {[%clk 0:02:38.7]} 14... Nxd2 {[%clk 0:02:00.6]} 15. Nxd2 {[%clk 0:02:38.9]}
15... Ra5 {[%clk 0:01:59.4]} 16. a4 {[%clk 0:02:38.8]} 16... e5 {[%clk
0:01:54.3]} 17. Bxb6 {[%clk 0:02:38.6]} 17... Raa8 {[%clk 0:01:54.9]} 18. Nb3
{[%clk 0:02:34.6]} 18... Na7 {[%clk 0:01:47.7]} 19. Be2 {[%clk 0:02:30.1]} 19...
Nc8 {[%clk 0:01:38.6]} 20. Bc5 {[%clk 0:02:30.1]} 20... Rd8 {[%clk 0:01:37]} 21.
a5 {[%clk 0:02:30.2]} 21... Bf8 {[%clk 0:01:35.3]} 22. Rfd1 {[%clk 0:02:27.6]}
22... Be6 {[%clk 0:01:32.4]} 23. Bxf8 {[%clk 0:02:20.6]} 23... Kxf8 {[%clk
0:01:33.3]} 24. Nc5 {[%clk 0:02:21.1]} 24... b6 {[%clk 0:01:29]} 25. axb6 {[%clk
0:02:04.5]} 25... Nxb6 {[%clk 0:01:29.9]} 26. b4 {[%clk 0:01:56.7]} 26... Ke7
{[%clk 0:01:24.1]} 27. g4 {[%clk 0:01:53.4]} 27... f5 {[%clk 0:01:21.8]} 28. Kg2
{[%clk 0:01:53.3]} 28... Rxa1 {[%clk 0:01:02]} 29. Rxa1 {[%clk 0:01:52.7]} 29...
Ra8 {[%clk 0:01:02.9]} 30. Ra5 {[%clk 0:01:48]} 30... Rxa5 {[%clk 0:00:51.5]}
31. bxa5 {[%clk 0:01:48.3]} 31... Nc8 {[%clk 0:00:51.8]} 32. Nxe6 {[%clk
0:01:44.5]} 32... Kxe6 {[%clk 0:00:50.9]} 33. f4 {[%clk 0:01:35.4]} 33... Na7
{[%clk 0:00:47.3]} 34. Bd1 {[%clk 0:01:32]} 34... fxg4 {[%clk 0:00:42.3]} 35.
hxg4 {[%clk 0:01:31.9]} 35... Kd6 {[%clk 0:00:42.4]} 36. Bb3 {[%clk 0:01:22]}
36... h5 {[%clk 0:00:36.9]} 37. g5 {[%clk 0:01:20.8]} 37... Nb5 {[%clk
0:00:29.4]} 38. a6 {[%clk 0:01:18.6]} 38... exf4 {[%clk 0:00:26.9]} 39. exf4
{[%clk 0:01:18.7]} 39... Kc7 {[%clk 0:00:27.2]} 40. c4 {[%clk 0:01:13]} 40...
dxc4 {[%clk 0:00:24.4]} 41. Bxc4 {[%clk 0:01:13.2]} 41... Nd6 {[%clk 0:00:24.1]}
42. Bd3 {[%clk 0:01:13.2]} 42... Kb6 {[%clk 0:00:20.7]} 43. Kg3 {[%clk 0:01:13]}
43... Nc8 {[%clk 0:00:14.9]} 44. Bxg6 {[%clk 0:00:59.5]} 44... Kxa6 {[%clk
0:00:14.7]} 45. Bxh5 {[%clk 0:01:00]} 45... Kb6 {[%clk 0:00:14.4]} 46. g6 {[%clk
0:01:00.5]} 46... Ne7 {[%clk 0:00:11.9]} 47. Kg4 {[%clk 0:01:00.5]} 47... Ng8
{[%clk 0:00:08.8]} 48. Kg5 {[%clk 0:01:00.2]} 48... Kc7 {[%clk 0:00:08.8]} 49.
f5 {[%clk 0:00:59.3]} 49... Kd7 {[%clk 0:00:07.2]} 50. f6 {[%clk 0:00:59.7]}
50... Ke8 {[%clk 0:00:07.3]} 51. f7+ {[%clk 0:00:59.7]} 51... Kf8 {[%clk
0:00:08.2]} 52. fxg8=Q+ {[%clk 0:00:59.6]} 52... Kxg8 {[%clk 0:00:09.1]} 53. Kh6
{[%clk 0:00:58.7]} 53... Kh8 {[%clk 0:00:09.3]} 54. Bg4 {[%clk 0:00:59.2]} 54...
Kg8 {[%clk 0:00:09.5]} 55. Be6+ {[%clk 0:00:59.6]} 55... Kh8 {[%clk 0:00:10.4]}
56. g7# {[%clk 0:00:59.9]} 1-0